Cogmind - Beta 14 *** ADVENTURER MODE // 2024.09.01 @ 11:21:28 Player: LegoMDS Result: Self-destructed Performance ------------- Evolutions (4) 2000 Regions Visited (7) 1400 Robots Destroyed (92) 460 Value Destroyed (3159) 3159 Prototype IDs (29) 580 Alien Tech Used (0) 0 Bonus (360) 360 TOTAL SCORE: 7959 Bonus ------- High Alert Combat Kills 60 Aligned with FarCom 300 Cogmind --------- Core Integrity 199/850 Matter 252/300 Energy 98/100 System Corruption 16% Temperature Cool (4) Movement Flying (115) Ox1 Location -6/Factory Parts ------- > --- POWER (2) -------- (None) > --- PROPULSION (4) --- Cooled Cesium-ion Thruster > --- UTILITY (6) ------ Medium Storage Unit Signal Interpreter Advanced Targeting Computer > --- WEAPON (3) ------- Improved Datajack > --- INVENTORY (10) --- Fission Core Advanced Melee Analysis Suite PSU Rigger Peak State ------------ > --- POWER ------------ Micro Nuclear Core Light Angular Momentum Engine > --- PROPULSION ------- Carbon-fiber Leg Cooled Cesium-ion Thruster Cooled Cesium-ion Thruster > --- UTILITY ---------- Medium Storage Unit Signal Interpreter Advanced Targeting Computer Energy Filter Advanced ECM Suite > --- WEAPON ----------- Arc Projector Heavy Machine Gun Improved Datajack > --- INVENTORY -------- Advanced Melee Analysis Suite PSU Rigger [Rating: 50] Favorites ----------- Power Nuclear Core Engine Ion Engine Power Core Nuclear Core Reactor Light Antimatter Reactor Propulsion Aluminum Leg Leg Aluminum Leg Flight Unit Cooled Cesium-ion Thruster Utility Small Storage Unit Device Structural Scanner Storage Small Storage Unit Processor Signal Interpreter Hackware Hacking Suite Weapon Field Laser Energy Gun Field Laser Energy Cannon Heavy Particle Cannon Ballistic Gun High-powered Shotgun Launcher Rocket Launcher Slashing Weapon Scythe Special Melee Weapon Improved Datajack Build | -11 -10 -10 -10 -9 -8 -7 -6 ------- Run | Yrd Mat Min Exi Min Mat Fac Fac Slots Evolved 8 | . . . . . 4 2 2 Power 1 | . . . . . . . 1 Propulsion 2 | . . . . . 2 . . Utility 4 | . . . . . 2 1 1 Weapon 1 | . . . . . . 1 . Parts Attached 78 | 6 2 5 . 2 17 17 29 Power 14 | 1 . 1 . . 1 3 8 Engine 5 | 1 . . . . . 2 2 Core 7 | . . 1 . . 1 1 4 Reactor 2 | . . . . . . . 2 Propulsion 18 | 2 . 1 . . 4 4 7 Treads . | . . . . . . . . Leg 16 | 2 . 1 . . 4 4 5 Wheel . | . . . . . . . . Hover . | . . . . . . . . Flight 2 | . . . . . . . 2 Utility 25 | 1 2 1 . . 7 7 7 Device 18 | . 2 1 . . 6 4 5 Storage 3 | 1 . . . . . 1 1 Processor 3 | . . . . . 1 2 . Hackware 1 | . . . . . . . 1 Protection . | . . . . . . . . Artifact . | . . . . . . . . Weapon 21 | 2 . 2 . 2 5 3 7 Energy Gun 13 | 2 . 1 . 2 4 1 3 Energy Cannon 1 | . . . . . 1 . . Ballistic Gun 4 | . . . . . . 1 3 Ballistic Cannon . | . . . . . . . . Launcher 1 | . . 1 . . . . . Special Weapon . | . . . . . . . . Impact Weapon . | . . . . . . . . Slashing Weapon 1 | . . . . . . 1 . Piercing Weapon . | . . . . . . . . Special Melee Weapon 1 | . . . . . . . 1 Unidentified Prototypes 4 | . . . . . 1 1 2 Parts Lost 33 | . . 2 . . . 2 29 Power 7 | . . 1 . . . . 6 Propulsion 12 | . . . . . . 2 10 Utility 8 | . . 1 . . . . 7 Weapon 6 | . . . . . . . 6 Highest Loss Streak 8 | . . 1 . . . 1 8 To Critical Strikes . | . . . . . . . . Average Slot Usage (%) 92 | . 99 99 100 100 99 99 72 Engine 3 | . 14 10 . . . 1 3 Core 5 | . . 2 14 14 9 5 3 Leg 24 | . 28 28 28 28 36 29 8 Device 14 | . 13 13 14 14 17 15 11 Storage 8 | . 14 14 14 14 9 7 3 Processor 9 | . . . . . 9 15 13 Energy Gun 13 | . 28 23 28 28 15 7 5 Energy Cannon 2 | . . . . . 2 6 . Ballistic Gun 2 | . . . . . . 6 3 Peak Build Rating 50 | 6 10 11 10 11 25 39 50 Average Rating 25 | 4 8 9 9 10 20 31 39 On Entrance 12 | . 6 10 9 10 11 22 33 Naked Turns . | . . . . . . . . Heaviest Build 41 | 13 14 17 14 15 24 30 41 Greatest Support 60 | 20 20 20 20 20 43 53 60 Greatest Overweight (x) 13 | . . . . . . . 13 Average Overweight (x) . | . . . . . . . 2 Largest Inventory Capacity 10 | 8 8 8 8 8 8 8 10 Average Capacity 7 | 6 8 8 8 8 8 8 7 Most Carried 8 | 4 8 8 8 8 8 8 8 Average Carried 6 | 2 5 7 7 7 7 7 5 Final Capacity 10 | 8 8 8 8 8 8 8 10 Final Carried 8 | 2 8 7 8 8 8 8 3 Class Distribution -------------------- 33% | Mutant 23% | Skirmisher 17% | Scavenger-Mutant 13% | Scavenger-Skirmisher 8% | Hacker-Mutant 3% | Hacker-Assassin Dominant Class ---------------- Mutant | -10/Materials Mutant | -10/Mines Mutant | -10/Exiles Skirmisher | -9/Mines Scavenger-Mutant | -8/Materials Skirmisher | -7/Factory Scavenger-Mutant | -6/Factory Resources | -11 -10 -10 -10 -9 -8 -7 -6 ----------- Run | Yrd Mat Min Exi Min Mat Fac Fac Matter Collected 1309 | 244 36 46 . 20 175 358 430 Remotely . | . . . . . . . . Salvage Created 4302 | . 359 110 . 120 414 1268 2031 Parts 171 | . 17 . . 5 24 63 62 Haulers Intercepted 2 | . . . . . . . 2 Recyclers Shooed . | . . . . . . . . Parts Field Recycled . | . . . . . . . . Retrieved Matter . | . . . . . . . . Parts Self-Destructed . | . . . . . . . . Prevented . | . . . . . . . . Kills | -11 -10 -10 -10 -9 -8 -7 -6 ------- Run | Yrd Mat Min Exi Min Mat Fac Fac Combat Hostiles Destroyed 58 | . 4 5 . 3 7 21 18 Melee 1 | . . . . . . . 1 Guns 38 | . 4 3 . 3 5 12 11 Cannons 11 | . . . . . 2 9 . AOE 6 | . . 1 . . . . 5 Classes Destroyed 13 | . 3 1 . 1 2 3 3 Worker 9 | . . . . . . 4 5 Builder 3 | . . . . . . . 3 Hauler 2 | . . . . . . . 2 Recycler 15 | . 2 . . . . 4 9 Operator 3 | . . . . . 2 1 . Watcher 5 | . 2 . . . 1 1 1 Swarmer 8 | . . . . . . 4 4 Grunt 32 | . 4 2 . 2 3 10 11 Duelist 1 | . . . . 1 . . . Sentry 8 | . . . . . 4 4 . Specialist 2 | . . . . . . . 2 Programmer 4 | . . . . . . 3 1 Assembled 3 | . . 3 . . . . . Best Kill Streak 23 | . 4 2 . 3 2 8 23 Combat Bots Only 6 | . 2 2 . 3 2 6 5 Max Kills in Single Turn 23 | . 1 1 . 1 1 3 23 Gunslinging . | . . . . . . . . Exploded 5 | . . 1 . . . . 5 Melee 1 | . . . . . . . 1 Uniques/NPCs Destroyed . | . . . . . . . . Combat | -11 -10 -10 -10 -9 -8 -7 -6 -------- Run | Yrd Mat Min Exi Min Mat Fac Fac Hostile Shots Fired 528 | . 14 25 . . 25 168 296 Missed 194 | . 4 10 . . 9 80 91 Damage Taken 4351 | . 98 286 . . 188 908 2871 Core 847 | . 22 57 . . 37 80 651 Absorbed by Shields . | . . . . . . . . Ignored by Resistances 1238 | . 30 83 . . 53 273 799 Regen/Repaired (Parts) 35 | . . . . . 35 . . Core Remaining (%) 87 | 100 . . . 68 93 88 . Volleys Fired 230 | . 27 21 . 4 33 54 91 Largest 3 | . 2 2 . 2 2 3 2 Hottest 163 | . 90 90 . 90 138 163 89 Shots Fired 409 | . 53 32 . 8 56 143 117 Gun 356 | . 53 30 . 8 47 101 117 Cannon 51 | . . . . . 9 42 . Launcher 2 | . . 2 . . . . . Special . | . . . . . . . . Kinetic 121 | . . . . . . 47 74 Thermal 283 | . 53 30 . 8 56 96 40 Explosive 2 | . . 2 . . . . . Electromagnetic 3 | . . . . . . . 3 Robot Hit Streak 26 | . 17 19 . 8 26 14 22 Robot Miss Streak 4 | . 2 2 . 1 4 3 3 Penetration Max 1 | . . . . . . . 1 Secondary Targets 3 | . 1 . . 1 . . 1 Max Gunslinging Chain 1 | . 1 . . 1 . . 1 Shots Hit Robots 330 | . 39 26 . 7 45 102 111 Core Hits 171 | . 16 14 . 6 16 55 64 Critical Kills 1 | . . . . . . . 1 Critical Parts Destroyed 3 | . . . . . . . 3 Critical Strikes 11 | . 1 1 . . 2 . 7 Burn 6 | . 1 1 . . 2 . 2 Destroy 5 | . . . . . . . 5 Melee Attacks 10 | . . . . . . . 10 Impact . | . . . . . . . . Slashing 8 | . . . . . . . 8 Piercing . | . . . . . . . . Sneak Attacks 1 | . . . . . . . 1 Combat Hostiles . | . . . . . . . . Follow-up Attacks . | . . . . . . . . Damage Inflicted 9928 | . 475 383 . 82 804 2958 5226 Guns 4921 | . 475 284 . 82 579 1409 2092 Cannons 1155 | . . . . . 225 930 . Explosions 3617 | . . 92 . . . 619 2906 Melee 214 | . . . . . . . 214 Ramming 21 | . . 7 . . . . 14 Kinetic 2203 | . . . . . . 778 1425 Thermal 6775 | . 475 284 . 82 804 1561 3569 Explosive 711 | . . 92 . . . 619 . Electromagnetic 4 | . . . . . . . 4 Impact . | . . . . . . . . Slashing 214 | . . . . . . . 214 Piercing . | . . . . . . . . Highest Corruption 15 | . . . . . . . 15 Average Corruption 3 | . . . . . . . 3 Corruption Purged . | . . . . . . . . Corruption Blocked . | . . . . . . . . Effects 20 | . . . . . . . 20 Message Errors 2 | . . . . . . . 2 Matter Fused 5 | . . . . . . . 5 Heat Flow Errors 5 | . . . . . . . 5 Energy Discharges 1 | . . . . . . . 1 Parts Rejected 1 | . . . . . . . 1 Data Loss (minor) 2 | . . . . . . . 2 Data Loss (major) 1 | . . . . . . . 1 Alerts 1 | . . . . . . . 1 Weapon Failures 2 | . . . . . . . 2 Overload Shots . | . . . . . . . . Overflow Damage 725 | . . . . . . 52 673 Projectiles 15 | . . . . . . 15 . Explosions 709 | . . . . . . 37 672 Melee 1 | . . . . . . . 1 Knockbacks 1 | . . . . . . . 1 Impact 1 | . . . . . . . 1 Kinetic . | . . . . . . . . Secondary . | . . . . . . . . Self-Inflicted Damage 231 | . . . . . . 126 105 Shots 5 | . . . . . . 3 2 Rammed 9 | . . . . . . . 9 Targets Rammed 19 | . . 5 . . . . 14 Kicked 10 | . . 5 . . . . 5 Crushed . | . . . . . . . . Highest Temperature 259 | . 259 30 . 144 144 114 259 Average Temperature 55 | . 109 9 . 74 41 28 61 Received Heat Transfer 1596 | . 78 57 . . 117 342 1002 Siege Activations . | . . . . . . . . Robots Corrupted . | . . . . . . . . Combat Hostiles . | . . . . . . . . Parts Fried . | . . . . . . . . Impact Corruptions . | . . . . . . . . Robots Melted 2 | . . 1 . . . . 1 Combat Hostiles 2 | . . 1 . . . . 1 Parts Melted 19 | . . 3 . . 8 4 4 Heat Transferred 10297 | . 1350 854 . 223 1813 2664 3393 Parts Sabotaged . | . . . . . . . . Parts Stolen . | . . . . . . . . Parts Stripped . | . . . . . . . . Power Chain Reactions . | . . . . . . . . Alert | -11 -10 -10 -10 -9 -8 -7 -6 ------- Run | Yrd Mat Min Exi Min Mat Fac Fac Peak Influence 529 | . 162 140 . 51 217 308 529 Initial 130 | . . 53 . . 16 60 130 Average 186 | . 92 110 . 37 108 178 331 Maximum Alert Level 2 | . . . . . 1 1 2 Low Security (%) 59 | 100 100 100 . 100 89 48 20 Level 1 31 | . . . . . 10 51 45 Level 2 9 | . . . . . . . 33 Level 3 . | . . . . . . . . Level 4 . | . . . . . . . . Level 5 . | . . . . . . . . High Security . | . . . . . . . . Max Security . | . . . . . . . . Squads Dispatched 15 | . . . . . 2 7 6 Investigation 2 | . . . . . . 1 1 Extermination 4 | . . . . . . 2 2 Reinforcement 8 | . . . . . 2 3 3 Assault . | . . . . . . . . Garrison 1 | . . . . . . 1 . Intercept . | . . . . . . . . Searches Triggered . | . . . . . . . . Construction Impeded 3 | . . . . . . 1 2 Haulers Reinforced . | . . . . . . . . Active Scanning Responses . | . . . . . . . . Cargo Convoy Interrupts . | . . . . . . . . Stealth | -11 -10 -10 -10 -9 -8 -7 -6 --------- Run | Yrd Mat Min Exi Min Mat Fac Fac Distress Signals 3 | . . . . . 1 . 2 Communications Jammed . | . . . . . . . . Distress Signals . | . . . . . . . . Times Spotted 91 | . 8 6 . 3 17 28 29 Peak Tracking Total 7 | . 2 2 . 3 3 4 7 Tactical Retreats 4 | . . . . . . 1 3 Traps | -11 -10 -10 -10 -9 -8 -7 -6 ------- Run | Yrd Mat Min Exi Min Mat Fac Fac Traps Triggered 2 | . . . . . 1 . 1 Indirectly . | . . . . . . . . Trap Hack Attempts . | . . . . . . . . Triggered . | . . . . . . . . Disarmed . | . . . . . . . . Reprogrammed 6 | . . . . . . 6 . Reused 1 | . . . . . . 1 . Traps Extracted . | . . . . . . . . Installed . | . . . . . . . . Triggered 1 | . . . . . . 1 . Objects Rigged 2 | . . . . . 1 1 . Exploded 1 | . . . . . 1 . . Machines | -11 -10 -10 -10 -9 -8 -7 -6 ---------- Run | Yrd Mat Min Exi Min Mat Fac Fac Machines Disabled 29 | . . . . . . 9 20 Max in Single Turn 20 | . . . . . . 5 20 Garrison Access 1 | . . . . . . 1 . Machines Repaired . | . . . . . . . . Machines Dismantled . | . . . . . . . . Machines Sabotaged . | . . . . . . . . Overloaded Fab Kills . | . . . . . . . . Hacking | -11 -10 -10 -10 -9 -8 -7 -6 --------- Run | Yrd Mat Min Exi Min Mat Fac Fac Machines Accessed 18 | . 3 . 2 . 3 7 3 Terminals 8 | . 3 . . . 1 4 . Fabricators 3 | . . . . . . 2 1 Repair Stations 2 | . . . . . 1 . 1 Recycling Units 2 | . . . . . 1 . 1 Scanalyzers . | . . . . . . . . Garrison Access 1 | . . . . . . 1 . Total Hacks 37 | . 5 . 2 . 6 19 5 Successful 21 | . 4 . 2 . 6 6 3 Failed 16 | . 1 . . . . 13 2 Catastrophic 1 | . . . . . . 1 . Database Lockouts . | . . . . . . . . Manual 1 | . . . 1 . . . . Terminals 19 | . 5 . . . 3 11 . Fabricators 5 | . . . . . . 4 1 Repair Stations 5 | . . . . . 2 . 3 Recycling Units 2 | . . . . . 1 . 1 Scanalyzers . | . . . . . . . . Garrison Access 4 | . . . . . . 4 . Terminal Hacks 13 | . 4 . 2 . 3 4 . Record 1 | . . . 1 . . . . Part Schematic 1 | . . . . . . 1 . Prototype ID Bank 1 | . 1 . . . . . . Level Access Points 1 | . 1 . . . . . . Locate Traps 3 | . 1 . . . 1 1 . Reprogram Traps 1 | . . . . . . 1 . Hauler Manifests 3 | . 1 . . . 1 1 . Zone Layout 1 | . . . . . 1 . . Derelict Proto ID Bank 1 | . . . 1 . . . . Fabricator Hacks 2 | . . . . . . 1 1 Network Status 1 | . . . . . . 1 . Build 1 | . . . . . . . 1 Repair Station Hacks 3 | . . . . . 2 . 1 Scan Component 2 | . . . . . 1 . 1 Repair 1 | . . . . . 1 . . Recycling Unit Hacks 2 | . . . . . 1 . 1 Report Inventory 1 | . . . . . 1 . . Retrieve Components 1 | . . . . . . . 1 Scanalyzer . | . . . . . . . . Garrison Access Hacks 1 | . . . . . . 1 . Seal Access 1 | . . . . . . 1 . Unauthorized Hacks . | . . . . . . . . Terminals . | . . . . . . . . Fabricators . | . . . . . . . . Repair Stations . | . . . . . . . . Recycling Units . | . . . . . . . . Scanalyzers . | . . . . . . . . Garrison Access . | . . . . . . . . Data Cores Recovered . | . . . . . . . . Used . | . . . . . . . . Hacking Detections 13 | . 3 . . . 1 7 2 Full Trace Events 2 | . . . . . . 1 1 Feedback Events . | . . . . . . . . Feedback Blocked . | . . . . . . . . Robot Schematics Acquired . | . . . . . . . . Robots Built . | . . . . . . . . Authchips . | . . . . . . . . Time . | . . . . . . . . Total Robot Build Rating . | . . . . . . . . Part Schematics Acquired 1 | . . . . . . 1 . Parts Built 2 | . . . . . . . 2 Authchips . | . . . . . . . . Time 58 | . . . . . . . 58 Total Part Build Rating 14 | . . . . . . . 14 Parts Repaired 1 | . . . . . 1 . . Time 32 | . . . . . 32 . . Parts Recycled . | . . . . . . . . Recycled Matter . | . . . . . . . . Retrieved Matter . | . . . . . . . . Retrieved Components 10 | . . . . . . . 10 Parts Scanalyzed . | . . . . . . . . Part Schematics Acquired . | . . . . . . . . Parts Damaged . | . . . . . . . . Bothacking | -11 -10 -10 -10 -9 -8 -7 -6 ------------ Run | Yrd Mat Min Exi Min Mat Fac Fac Used RIF Installer . | . . . . . . . . Robots Hacked 2 | . . . . . . . 2 Non-combat 1 | . . . . . . . 1 Combat 1 | . . . . . . . 1 Robot Hacks Applied 2 | . . . . . . . 2 parse_system 1 | . . . . . . . 1 no_distress 1 | . . . . . . . 1 Relay Couplers Released . | . . . . . . . . Fabnet Peak Effective % . | . . . . . . . . Robots Rewired . | . . . . . . . . Allies Hacked . | . . . . . . . . Hacks Repelled . | . . . . . . . . Allies | -11 -10 -10 -10 -9 -8 -7 -6 -------- Run | Yrd Mat Min Exi Min Mat Fac Fac Total Allies 3 | . . . . 3 . . . Largest Group 3 | . . . . 3 1 . . Highest-Rated Group 40 | . . . . 40 16 . . Highest-Rated Ally 16 | . . . . 16 16 . . Total Orders . | . . . . . . . . Ally Attacks 14 | . . . . 11 3 . . Total Damage 142 | . . . . 110 32 . . Kills 1 | . . . . 1 . . . Allies Corrupted . | . . . . . . . . Allies Melted . | . . . . . . . . Intel | -11 -10 -10 -10 -9 -8 -7 -6 ------- Run | Yrd Mat Min Exi Min Mat Fac Fac Robot Analysis Total . | . . . . . . . . Derelict Logs Recovered 1 | . . . . 1 . . . Drone Launches . | . . . . . . . . Drone Recoveries . | . . . . . . . . Exploration | -11 -10 -10 -10 -9 -8 -7 -6 ------------- Run | Yrd Mat Min Exi Min Mat Fac Fac Turns Passed 4648 | 64 337 417 268 157 786 1440 1179 Spaces Moved 2493 | 43 204 274 223 116 473 823 337 Core 92 | 5 . . . . . . 87 Treads . | . . . . . . . . Legs 2390 | 38 204 274 223 116 473 823 239 Wheels . | . . . . . . . . Hover . | . . . . . . . . Flight 11 | . . . . . . . 11 Fastest Speed 32 | 50 120 120 120 120 120 120 32 Average Speed 135 | 111 120 120 120 120 120 121 230 Slowest Speed 700 | 120 120 120 120 120 120 123 700 Overloaded Moves . | . . . . . . . . Propulsion Burnouts . | . . . . . . . . Robots Hopped . | . . . . . . . . Cave-ins Triggered . | . . . . . . . . Exploration Rate (%) 36 | 3 42 62 61 44 40 28 9 Regions Visited 7 Branch Regions 3 Pre-discovered Areas 2 | . . . 1 1 . . . Known Exits Taken 2 | . . . . . 1 1 . Unknown Exits Taken 5 | 1 1 1 1 1 . . . Scrap Searched 2 | . . 1 . 1 . . . Spaces Dug . | . . . . . . . . Terrain Destroyed 75 | . . 28 . . . 23 24 Melee . | . . . . . . . . Projectile . | . . . . . . . . AOE 75 | . . 28 . . . 23 24 Terrain Rammed . | . . . . . . . . Walls Destroyed . | . . . . . . . . Machines Disabled . | . . . . . . . . Actions | -11 -10 -10 -10 -9 -8 -7 -6 --------- Run | Yrd Mat Min Exi Min Mat Fac Fac Total 3365 | 59 242 328 223 127 643 1156 587 Wait 432 | 3 3 21 . 2 81 239 83 Move 2486 | 42 203 273 222 115 472 822 337 Hop . | . . . . . . . . Pick Up 64 | 8 7 2 1 1 19 8 18 Fast Attach 14 | . . . . 1 3 4 6 Attach 36 | 6 1 2 . . 6 2 19 Detach . | . . . . . . . . Swap 28 | . 1 3 . 1 8 11 4 Drop 44 | . . 1 . 3 20 15 5 Fire 230 | . 27 21 . 4 33 54 91 Melee 10 | . . . . . . . 10 Ram 9 | . . . . . . . 9 Kick 10 | . . 5 . . . . 5 Crush . | . . . . . . . . Escape Stasis . | . . . . . . . . Rewire . | . . . . . . . . Trap 2 | . . . . . 1 1 . Miscellaneous . | . . . . . . . . Route ------- -11/Scrapyard -10/Materials (discovered 4 exits: Mat x3 / [*Min]) -10/Mines (discovered 3 exits: *Mat x2 / *Exi) -10/Exiles -9/Mines -8/Materials -7/Factory (discovered 2 exits: *Fac / *Low) -6/Factory History --------- Turn | Location | Event 17 | -11/Scrapyard | Discovered new exit (range 15) 65 | -11/Scrapyard | Entered Materials 146 | -10/Materials | Identified exit to Materials 300 | -10/Materials | Build established: Mutant 373 | -10/Materials | Discovered new exit (range 11) 402 | -10/Materials | Entered Mines 403 | -10/Mines | Assembled infested the area 524 | -10/Mines | Received a Rocket Launcher from a helpful Derelict 542 | -10/Mines | Discovered exit to Materials (range 7) 748 | -10/Mines | Discovered exit to Materials (range 9) 814 | -10/Mines | Deemed a non-threat by the Exiles lab entrance 814 | -10/Mines | Discovered new exit (range 5) 819 | -10/Mines | Entered Exiles 849 | -10/Exiles | Met 8R-AWN 870 | -10/Exiles | Met EX-HEX 903 | -10/Exiles | Met EX-BIN 919 | -10/Exiles | Aligned with FarCom system 920 | -10/Exiles | Given EX-Vault access code 948 | -10/Exiles | Opened EX-Vault 955 | -10/Exiles | Found PSU Rigger 981 | -10/Exiles | Warned to stay clear of 0b10 Research branches 1018 | -10/Exiles | Met EX-DEC 1028 | -10/Exiles | Learned location of Zion (-7) 1077 | -10/Exiles | Discovered new exit (range 10) 1087 | -10/Exiles | Left Exiles lab with PSU Rigger 1087 | -10/Exiles | Entered Mines 1089 | -9/Mines | Assisted by bots powering up and referring to "LRC-V3" 1101 | -9/Mines | Learned location of Storage (-9) 1221 | -9/Mines | Discovered new exit (range 11) 1244 | -9/Mines | Entered Materials 1244 | -8/Materials | Accompanied by 1 ally 1244 | -8/Materials | Evolved 4 slots: Propulsion x2, Utility x2 1471 | -8/Materials | Build established: Scavenger-Skirmisher 1806 | -8/Materials | Build established: Scavenger-Mutant 1989 | -8/Materials | Repaired Cooling System 2025 | -8/Materials | Discovered new exit (range 3) 2029 | -8/Materials | Identified exit to Factory 2030 | -8/Materials | Entered Factory 2030 | -7/Factory | Evolved 2 slots: Utility x1, Weapon x1 2355 | -7/Factory | Garrison activated, responded to threat 2374 | -7/Factory | Build established: Skirmisher 2785 | -7/Factory | Discovered new exit (range 16) 2802 | -7/Factory | Identified exit to Lower Caves 3447 | -7/Factory | Discovered new exit (range 11) 3464 | -7/Factory | Identified exit to Factory 3470 | -7/Factory | Entered another Factory area 3470 | -6/Factory | Evolved 2 slots: Power x1, Utility x1 3652 | -6/Factory | Lost 8 parts (2p4n1u1w) 3820 | -6/Factory | Fabricated Lgt. Antimatter Reactor (x2) 3946 | -6/Factory | Lost 5 parts (4n1u) 4229 | -6/Factory | Core integrity fell below 50% 4256 | -6/Factory | Lost 5 parts (1p2u2w) 4616 | -6/Factory | Build established: Scavenger-Mutant 4628 | -6/Factory | System corruption reached 10% 4649 | -6/Factory | Self-destructed Last Messages --------------- System corrupted: Matter fused (-8). K-01 Serf cleans the Fabricator. Jacked P-60 Hacker... >>parse_system Reading system data... Kicked P-60 Hacker. Kicked P-60 Hacker out of the way. Adv. ECM Suite destroyed. Kicked P-60 Hacker. Mic. Nuclear Core destroyed. Carbon-fiber Leg destroyed. Slammed into P-60 Hacker. P-60 Hacker knocked back. Energy Filter destroyed. Slammed into P-60 Hacker. Destabilizing: System corrupted (+2). Slammed into P-60 Hacker. Lgt. Angular Momentum Engine destroyed. Slammed into P-60 Hacker. Cld. Cesium-ion Thruster destroyed. Map ----- +----------------------------------------------------+ | #?????? ??????????????????????????????????? | | #?????? ?????????????????????????????????? | | #??????? ?????????????????????????????????? | | #??????? ????????????????????????????????? | | ^ ####????? ????????????????????????????????? | | ##########+#############????????????????????? | | # [ #????????????????????? | | # #????????????????????? | | # "S #????????????????????? | | # """ ! #????????????????????? | | # "" #????????????????????? | | # #????????????????????? | | % ###+#############+????????????? | | m ???????????? | | ???????????? | | ???????????? | | % ???????????? | | % ???????????? | | % % % ##########+####????????? | | % #???# ?????????? | | % % #???# "" ??????????? | | % % #???# " "??????????? | | % #???# "F """ ???????? | | % R #???# "" ! """ ???????? | | ##??# ???????? | | @T#??# """ """ #?????? | | #??# """ """ #?????? | | ##??# """ """ #?????? | | % ##### #?????? | | p + #?????? | | % ##### #?????? | | #???##############?????? | | #+##### ##### ##############????????????????? | | # ????# # #????????????????? | | """ + ????# # """ #????????????????? | | """ ##?????# + """"" #????????????????? | | """ #??????# # """"" !#????????????????? | | ######## # #????????????????? | | !!""" + ##############????????????????? | | *!=Y" ##########+#######?????????????????????????? | | """ #???# #?????????????????????????? | | #???# #?????????????????????????? | | #######???# #?????????????????????????? | | ??????????# #?????????????????????????? | | ??????????# """ """ #?????????????????????????? | | ??????????# """ """ #?????????????????????????? | | ??????????# """ """ #?????????????????????????? | | ??????????# #?????????????????????????? | | ??????????# """ """ #?????????????????????????? | | ??????????# """ """ #?????????????????????????? | +----------------------------------------------------+ Best States ------------- Heat Dissipation 64 Energy Generation 37 Energy Capacity 500 Matter Stores 300 Matter Capacity 300 Sight Range 16 Robot Scan Range 15 Terrain Scan Density 10 ECM Strength 2 Resistance: KI 20 Resistance: TH 20 Resistance: EX 20 Resistance: EM 20 Resistance: I 20 Resistance: S 20 Resistance: P 20 Evasion (%) 55 Targeting Accuracy 8 Energy Filtering 30 Offensive Hacking 20 Item Schematics ----------------- Imp. Weapon Cycler | -7/Factory | Hacked Robot Schematics ------------------ None Fabricated ------------ Lgt. Antimatter Reactor | x2 | -6/Factory | Preloaded Alien Tech Used ----------------- None Achievements -------------- None Challenges ------------ None Game ------ Seed GatlingDiametricSabre Manual? 0 Play Time 00:39:16 Cumulative 49.5 hours Start 2024.09.01 @ 10:43:35 End 2024.09.01 @ 11:21:28 Sessions 1 Manual Loads 0 Difficulty Adventurer Special Mode None Game No. 64 Rogue 13 Adventurer 51 Explorer 0 Win Type - Total 0 Types 0/0/0/0/0/0/0/0/0 Lore% 40 Gallery% 46 Achievement% 40 Wizard Run 0 Options --------- Layout 1 ASCII 0 Keyboard 0 Movement Mouse Keybinds 0 Fullscreen 1 Font 24/Smallcaps Map View 50x35 Zoom Use 0% Tactical HUD 0 Map Filters NONE Filters NONE Steam 1 RUN: f4abfd3f-6978-49bf-bf94-771cae9fcbad